Organisation Name,Organisation Code,Effective Date,Directorate,Service Category,Service Category URI,Supplier Name,Payment Date,Transaction Number,Net Amount,Irrecoverable VAT,Purpose_of_the_expenditure,Merchant Category,,DELETE FIELD,,
Wyre Council,http://opendatacommunities.org/doc/district-council/wyre,27/09/2020,People and Places,Cultural and Related Services,132A,FOREST SCHOOLS,31/03/2020,142380,397.00,0.00,REDACT- BEACH SCHOOL COURSE LEADER TRAINING COURSE,Training - Non HR Controlled,,17012,,************1920
Wyre Council,http://opendatacommunities.org/doc/district-council/wyre,27/09/2020,People and Places,Highways,133B,STONE UK LTD,07/01/2020,143404,14.40,0.00,yorkstone natural riven paving,"Street Furniture, Memorials - (Non BM)",,21067,,************1920
Wyre Council,http://opendatacommunities.org/doc/district-council/wyre,27/09/2020,Resources,Support Services,135B,VIRGIN RAIL GROUP LTD,17/03/2020,143860,187.40,0.00,Virgin Train Tickets for REDACT PLF - London Bridge 23/10/19,Other Travelling Expenses,,33000,,************3707
Wyre Council,http://opendatacommunities.org/doc/district-council/wyre,27/09/2020,Resources,Public Transport,133G,THE UNITED KINGDOM HYDROGRAPHIC OFFICE,06/01/2020,144563,45.00,0.00,UK Hydrographic Office Tide Tables order for REDACT,Private Contractors,,57000,,************3707
Wyre Council,http://opendatacommunities.org/doc/district-council/wyre,27/09/2020,People and Places,Support Services,135B,K I K ATVS LTD,06/01/2020,145122,41.98,0.00,Car Parks V96,Daywork Materials (Excl.Tyres),,30507,,************4775
Wyre Council,http://opendatacommunities.org/doc/district-council/wyre,27/09/2020,People and Places,Support Services,135B,MOWERPOWER LTD,06/01/2020,145120,40.93,0.00,2  X CHAINSAW BLADES,Daywork Materials (Excl.Tyres),,30507,,************4775
Wyre Council,http://opendatacommunities.org/doc/district-council/wyre,27/09/2020,People and Places,Support Services,135B,DVLA,07/01/2020,145151,262.50,0.00,APPLICATION REFERENCE 1195-5532-8261-566612 MONTH VEHICLE TAX FOR PF10 NUM,Licences/MOT Certificates,,30502,,************4775
Wyre Council,http://opendatacommunities.org/doc/district-council/wyre,27/09/2020,People and Places,Support Services,135B,DVLA,07/01/2020,145153,262.50,0.00,APPLICATION REFERENCE 1195-5556-8869265212 MONTH VEHICLE TX FOR PJ09 PXT,Licences/MOT Certificates,,30502,,************4775
Wyre Council,http://opendatacommunities.org/doc/district-council/wyre,27/09/2020,People and Places,Environmental Services,132B,POST OFFICE LTD,14/01/2020,145394,220.00,0.00,SIA Front Line Renewal Licence for REDACT,Training - Non HR Controlled,,17012,,************6873
Wyre Council,http://opendatacommunities.org/doc/district-council/wyre,27/09/2020,People and Places,Environmental Services,132B,ASDA STORES LTD,14/01/2020,145392,6.73,0.00,CCTV Volunteer Supplies - biscuits and cleaning wipes,Volunteer Expenses,,14010,,************6873
Wyre Council,http://opendatacommunities.org/doc/district-council/wyre,27/09/2020,Resources,Environmental Services,132B,Etekcity,16/01/2020,145515,63.71,0.00,Etekcity order 4 x Digital Laser Thermometer for REDACT,Purchase of Tools or Equipment,,40100,,************3707
Wyre Council,http://opendatacommunities.org/doc/district-council/wyre,27/09/2020,Resources,Planning and Development Servs,132C,Avanti West Coast,16/01/2020,145511,196.00,0.00,Avanti rail travel for REDACT 22/01/20 Preston to London,Event Hospitality,,46842,,************3707
Wyre Council,http://opendatacommunities.org/doc/district-council/wyre,27/09/2020,Resources,Planning and Development Servs,132C,Premier Inn,16/01/2020,145513,324.00,0.00,Premier Inn booking for REDACT on 22/01/20,Event Hospitality,,46842,,************3707
Wyre Council,http://opendatacommunities.org/doc/district-council/wyre,27/09/2020,People and Places,Central Services to the Public,131C,Facebook,20/01/2020,145702,20.00,0.00,Lottery launch,Advertising - General,,46100,,************1416
Wyre Council,http://opendatacommunities.org/doc/district-council/wyre,27/09/2020,People and Places,Cultural and Related Services,132A,Facebook,20/01/2020,145698,17.00,0.00,panto boosted post,Advertising - General,,46100,,************1416
Wyre Council,http://opendatacommunities.org/doc/district-council/wyre,27/09/2020,People and Places,Cultural and Related Services,132A,Facebook,20/01/2020,145700,3.00,0.00,panto and ice cube blizzard boosted post,Advertising - General,,46100,,************1416
Wyre Council,http://opendatacommunities.org/doc/district-council/wyre,27/09/2020,People and Places,Cultural and Related Services,132A,Mailchimp,20/01/2020,145721,15.65,0.00,Monthly fee,Advertising - General,,46100,,************1416
Wyre Council,http://opendatacommunities.org/doc/district-council/wyre,27/09/2020,People and Places,Planning and Development Servs,132C,Facebook,20/01/2020,145700,14.00,0.00,panto and ice cube blizzard boosted post,Promotions - General,,46104,,************1416
Wyre Council,http://opendatacommunities.org/doc/district-council/wyre,27/09/2020,People and Places,Planning and Development Servs,132C,Mailchimp,20/01/2020,145721,15.64,0.00,Monthly fee,Other Contributions,,45201,,************1416
Wyre Council,http://opendatacommunities.org/doc/district-council/wyre,27/09/2020,People and Places,Cultural and Related Services,132A,DISPLAYSENSE,22/01/2020,145805,120.33,0.00,Heavy duty folding chrome clothes rail x 2,Purchase of Tools or Equipment,,40100,,************8609
Wyre Council,http://opendatacommunities.org/doc/district-council/wyre,27/09/2020,People and Places,Cultural and Related Services,132A,ASDA STORES LTD,22/01/2020,145797,3.28,0.00,Fruit for gins for Wyre Business awards.,Kiosk stock,,41000,,************8609
Wyre Council,http://opendatacommunities.org/doc/district-council/wyre,27/09/2020,People and Places,Cultural and Related Services,132A,BOOKER LTD,22/01/2020,145799,308.14,0.00,17 Boxes of seabrook19 Big time Blackcurrant18 Big Time Raspberry 11 x Small kinder 3 X Freddo,Kiosk stock,,41000,,************8609
Wyre Council,http://opendatacommunities.org/doc/district-council/wyre,27/09/2020,People and Places,Cultural and Related Services,132A,ASDA STORES LTD,22/01/2020,145795,82.69,0.00,Satsumas for panto snack packs,Kiosk stock,,41000,,************8609
Wyre Council,http://opendatacommunities.org/doc/district-council/wyre,27/09/2020,People and Places,Cultural and Related Services,132A,ASDA STORES LTD,22/01/2020,145803,4.70,0.00,Gluten Free Cakes applesharibo,Kiosk stock,,41000,,************8609
Wyre Council,http://opendatacommunities.org/doc/district-council/wyre,27/09/2020,People and Places,Cultural and Related Services,132A,ASDA STORES LTD,22/01/2020,145793,16.40,0.00,Oranges and spoons for snack packs,Kiosk stock,,41000,,************8609
Wyre Council,http://opendatacommunities.org/doc/district-council/wyre,27/09/2020,People and Places,Cultural and Related Services,132A,BOOKER LTD,22/01/2020,145801,124.35,0.00,15 boxes of 32 Seabrook crisps for Panto snack packs,Kiosk stock,,41000,,************8609
Wyre Council,http://opendatacommunities.org/doc/district-council/wyre,27/09/2020,People and Places,Cultural and Related Services,132A,BLACKPOOL COUNCIL,22/01/2020,145811,30.12,0.00,Extra bin collection after the schools had been to watch panto.No receipt,Refuse Collection,,27008,,************8609
Wyre Council,http://opendatacommunities.org/doc/district-council/wyre,27/09/2020,People and Places,Cultural and Related Services,132A,Display Sense .co.uk,22/01/2020,145807,-14.39,0.00,"Refund, for only delivering 1 item and not next day delivery.",Purchase of Tools or Equipment,,40100,,************8609
Wyre Council,http://opendatacommunities.org/doc/district-council/wyre,27/09/2020,People and Places,Cultural and Related Services,132A,ARGOS,22/01/2020,145809,45.79,0.00,Black Hangers,Purchase of Tools or Equipment,,40100,,************8609
Wyre Council,http://opendatacommunities.org/doc/district-council/wyre,27/09/2020,People and Places,Environmental Services,132B,C & C SUPPLIES COLLINSON LTD,27/01/2020,146106,19.84,0.00,supply Tompsons waterseal one c,Special Works,,28003,,************1920
Wyre Council,http://opendatacommunities.org/doc/district-council/wyre,27/09/2020,People and Places,Environmental Services,132B,BUILDERS SUPPLIES (WEST COAST) LTD,27/01/2020,146178,6.00,0.00,INVOICE NO 0001/00153803HEAD COACH SCREWSQUARE PLATE WASHERSEA WALL SEAT CLEVELEYS,Materials and Consumables,,42002,,************0987
Wyre Council,http://opendatacommunities.org/doc/district-council/wyre,27/09/2020,People and Places,Environmental Services,132B,SCREW FIX DIRECT LTD,27/01/2020,146104,2.49,0.00,INVOICE NO A5825070571R12515GLASS CUTTER,Materials and Consumables,,42002,,************1920
Wyre Council,http://opendatacommunities.org/doc/district-council/wyre,27/09/2020,People and Places,Environmental Services,132B,THE LOCKSHOP,27/01/2020,146094,21.08,0.00,FERRY DOCK LOCKCALA GRAN 2 X LOCKS,Materials and Consumables,,42002,,************1920
Wyre Council,http://opendatacommunities.org/doc/district-council/wyre,27/09/2020,People and Places,Highways,133B,STONE UK LTD,27/01/2020,146108,75.00,0.00,supply  40ind. Reclaimed Yorkstone Setts ; setts to picked up and taken to Chatsworth for installati,Seats and Shelters (Non BM),,21012,,************1920
Wyre Council,http://opendatacommunities.org/doc/district-council/wyre,27/09/2020,People and Places,Highways,133B,WYRE BUILDING SUPPLIES,27/01/2020,146154,5.00,0.00,INVOICE NO SI0225619R12352MORTAR,"Street Furniture, Memorials - (Non BM)",,21067,,************9017
Wyre Council,http://opendatacommunities.org/doc/district-council/wyre,27/09/2020,People and Places,Highways,133B,AITCH TOOLS & FASTENERS LTD,27/01/2020,146098,29.00,0.00,R12537ANGLE BAR R11854POZI PAN,Naming of Streets,,28023,,************1920
Wyre Council,http://opendatacommunities.org/doc/district-council/wyre,27/09/2020,People and Places,Public Transport,133G,THE LOCKSHOP,27/01/2020,146094,22.00,0.00,FERRY DOCK LOCKCALA GRAN 2 X LOCKS,Landing Stage Maintenance,,21007,,************1920
Wyre Council,http://opendatacommunities.org/doc/district-council/wyre,27/09/2020,People and Places,Public Transport,133G,AITCH TOOLS & FASTENERS LTD,27/01/2020,146096,78.50,0.00,REPAIR WASHERSDRILL BITSA2 NUTS &amp; SCREWS,Repairs to Non-WBC Buildings,,21004,,************1920
Wyre Council,http://opendatacommunities.org/doc/district-council/wyre,27/09/2020,People and Places,Public Transport,133G,NORTHERN GLASS,27/01/2020,146150,274.33,0.00,INVOICE 1478906R12292S/G TUGG CLEAR POLISHED,Repairs to Non-WBC Buildings,,21004,,************9017
Wyre Council,http://opendatacommunities.org/doc/district-council/wyre,27/09/2020,People and Places,Public Transport,133G,MARTIN BROWN PAINTS LTD,27/01/2020,146152,131.04,0.00,DOCUMENT NO HIN326866R12132RAZOR BLADESRONSEAL BLACK,Repairs to Non-WBC Buildings,,21004,,************9017
Wyre Council,http://opendatacommunities.org/doc/district-council/wyre,27/09/2020,People and Places,Public Transport,133G,BUILDERS SUPPLIES (WEST COAST) LTD,27/01/2020,146156,23.61,0.00,INVOICE NO 0001/00153954WHITEBLACKMAGNETIC BIT HOLDERBUS SHELTERS,Repairs to Non-WBC Buildings,,21004,,************9017
Wyre Council,http://opendatacommunities.org/doc/district-council/wyre,27/09/2020,People and Places,Support Services,135B,BUILDERS SUPPLIES (WEST COAST) LTD,27/01/2020,146176,79.98,0.00,supply items for R12375,Protective Clothing,,41600,,************0987
Wyre Council,http://opendatacommunities.org/doc/district-council/wyre,27/09/2020,People and Places,Support Services,135B,BUILDERS SUPPLIES (WEST COAST) LTD,27/01/2020,146176,188.22,0.00,supply items for R12375,Materials and Consumables,,42002,,************0987
Wyre Council,http://opendatacommunities.org/doc/district-council/wyre,27/09/2020,People and Places,Support Services,135B,SCREWFIX,27/01/2020,146102,18.33,0.00,INVOICE A5821686655COLLECTION NO T924GARY SCOTT ENGRAVER,Purchase of Tools or Equipment,,40100,,************1920
Wyre Council,http://opendatacommunities.org/doc/district-council/wyre,27/09/2020,People and Places,"Cultural, Environ and Planning",137B,AITCH TOOLS & FASTENERS LTD,27/01/2020,146098,305.80,0.00,R12537ANGLE BAR R11854POZI PAN,Contract (New CCR),,04020,,************1920
Wyre Council,http://opendatacommunities.org/doc/district-council/wyre,27/09/2020,People and Places,"Cultural, Environ and Planning",137B,AITCH TOOLS & FASTENERS LTD,27/01/2020,146096,343.92,0.00,REPAIR WASHERSDRILL BITSA2 NUTS &amp; SCREWS,Contract (New CCR),,04020,,************1920
Wyre Council,http://opendatacommunities.org/doc/district-council/wyre,27/09/2020,People and Places,Environmental Services,132B,SHELL WEST VIEW,27/01/2020,146100,19.07,0.00,PETROL FOR CLEANSING TO USE IN THE LEAF COLLECTOR,Petrol,,30511,,************1920
Wyre Council,http://opendatacommunities.org/doc/district-council/wyre,27/09/2020,People and Places,Support Services,135B,J. W. FISH,27/01/2020,146110,8.75,0.00,-,Maintenance of Tools or Equipment,,40102,,************1920
Wyre Council,http://opendatacommunities.org/doc/district-council/wyre,27/09/2020,People and Places,Environmental Services,132B,NORTHERN EXPRESS GLASS,27/01/2020,146180,103.80,0.00,INVOICE 1478948R12586MOUNT SHELTERS,Materials and Consumables,,42002,,************0987
Wyre Council,http://opendatacommunities.org/doc/district-council/wyre,27/09/2020,People and Places,Highways,133B,BUILDERS SUPPLIES (WEST COAST) LTD,27/01/2020,146182,61.70,0.00,25kg cement - grit sand bulk bag,Maint. of Unadopted Assets - Engineers,,28014,,************0987
Wyre Council,http://opendatacommunities.org/doc/district-council/wyre,27/09/2020,People and Places,Support Services,135B,JOHN WILKINSON & SON BUILDERS LTD,27/01/2020,146184,8.13,0.00,4x4 TRTD BROWN 2.4 MTR,Materials and Consumables,,42002,,************0987
Wyre Council,http://opendatacommunities.org/doc/district-council/wyre,27/09/2020,People and Places,Support Services,135B,J W FISH LTD,27/01/2020,146112,8.99,0.00,BRUSH,Maintenance of Tools or Equipment,,40102,,************1920
Wyre Council,http://opendatacommunities.org/doc/district-council/wyre,27/09/2020,People and Places,Planning and Development Servs,132C,AITCH TOOLS & FASTENERS LTD,27/01/2020,146166,4.85,0.00,24 m6x55 skt capscrew   24 m6 nyloc nut,Pop Ups Maintenance,,40113,,************9017
Wyre Council,http://opendatacommunities.org/doc/district-council/wyre,27/09/2020,People and Places,Planning and Development Servs,132C,ST GOBAIN BUILDING DISTRIBUTION LTD,27/01/2020,146162,3.96,0.00,key split ring and key tabs,Pop Ups Maintenance,,40113,,************9017
Wyre Council,http://opendatacommunities.org/doc/district-council/wyre,27/09/2020,People and Places,Public Transport,133G,HUWS GRAY LTD,27/01/2020,146164,54.03,0.00,"plywood, sealent and fence coat",Repairs to Non-WBC Buildings,,21004,,************9017
Wyre Council,http://opendatacommunities.org/doc/district-council/wyre,27/09/2020,People and Places,Public Transport,133G,MARTIN BROWN PAINTS LTD,27/01/2020,146160,40.95,0.00,Conseal/2.5,Repairs to Non-WBC Buildings,,21004,,************9017
Wyre Council,http://opendatacommunities.org/doc/district-council/wyre,27/09/2020,People and Places,Central Services to the Public,131C,ASDA STORES LTD,27/01/2020,146198,4.24,0.00,WATER BIN LINERSTEA TOWELSSCOURERSZOFLORATOILET BRUSH,Purchase of Tools or Equipment,,40100,,************1920
Wyre Council,http://opendatacommunities.org/doc/district-council/wyre,27/09/2020,People and Places,Central Services to the Public,131C,J W FISH LTD,27/01/2020,146138,12.50,0.00,Keys for Election Portocabins (batch 1 ),Hire of Tools or Equipment,,40101,,************1920
Wyre Council,http://opendatacommunities.org/doc/district-council/wyre,27/09/2020,People and Places,Central Services to the Public,131C,SCREW FIX,27/01/2020,146116,83.30,0.00,INVOICE NUMBER A5908192573LED LANTERN,Hire of Tools or Equipment,,40101,,************1920
Wyre Council,http://opendatacommunities.org/doc/district-council/wyre,27/09/2020,People and Places,Environmental Services,132B,ASDA STORES LTD,27/01/2020,146198,16.33,0.00,WATER BIN LINERSTEA TOWELSSCOURERSZOFLORATOILET BRUSH,Cleaning Materials,,40501,,************1920
Wyre Council,http://opendatacommunities.org/doc/district-council/wyre,27/09/2020,People and Places,Planning and Development Servs,132C,DRAINAGE SALES,27/01/2020,146114,1055.32,0.00,INVOICE NO D0137079CHANNEL DRAINAGE CONCRETE,"Paths, Roads and Car Park Mtnce Annual",,28050,,************1920
Wyre Council,http://opendatacommunities.org/doc/district-council/wyre,27/09/2020,People and Places,Support Services,135B,SCREWFIX,27/01/2020,146120,37.50,0.00,ORDER NO A5919025397SPACE HEATER,Purchase of Tools or Equipment,,40100,,************1920
Wyre Council,http://opendatacommunities.org/doc/district-council/wyre,27/09/2020,People and Places,Support Services,135B,AMAZON,27/01/2020,146134,91.66,0.00,ORDER 202-6903160-2340311FRIDGEMASTER,Purchase of Tools or Equipment,,40100,,************1920
Wyre Council,http://opendatacommunities.org/doc/district-council/wyre,27/09/2020,People and Places,Support Services,135B,SCEW FIX,27/01/2020,146122,37.49,0.00,ORDER NO A5918944580SPACE HEATERVICARAGE PARK,Purchase of Tools or Equipment,,40100,,************1920
Wyre Council,http://opendatacommunities.org/doc/district-council/wyre,27/09/2020,People and Places,Central Services to the Public,131C,aldi fleetwood,27/01/2020,146118,41.65,0.00,2 x fan heater,Hire of Tools or Equipment,,40101,,************1920
Wyre Council,http://opendatacommunities.org/doc/district-council/wyre,27/09/2020,People and Places,Environmental Services,132B,screwfix fleetwood,27/01/2020,146130,24.99,0.00,drill bit,Materials and Consumables,,42002,,************1920
Wyre Council,http://opendatacommunities.org/doc/district-council/wyre,27/09/2020,People and Places,Environmental Services,132B,the lock shop,27/01/2020,146126,184.00,0.00,R12636,Materials and Consumables,,42002,,************1920
Wyre Council,http://opendatacommunities.org/doc/district-council/wyre,27/09/2020,People and Places,Support Services,135B,screwfix fleetwood,27/01/2020,146128,39.99,0.00,dewalt safety boot black size 8,Protective Clothing,,41600,,************1920
Wyre Council,http://opendatacommunities.org/doc/district-council/wyre,27/09/2020,People and Places,Central Services to the Public,131C,J W FISH LTD,27/01/2020,146140,12.50,0.00,keys for porta cabins (batch 2),Hire of Tools or Equipment,,40101,,************1920
Wyre Council,http://opendatacommunities.org/doc/district-council/wyre,27/09/2020,People and Places,Environmental Services,132B,BUILDERS SUPPLIES (WEST COAST) LTD,27/01/2020,146168,30.00,0.00,R12675STANDARD NATURAL FLAG,Special Works,,28003,,************9017
Wyre Council,http://opendatacommunities.org/doc/district-council/wyre,27/09/2020,People and Places,Public Transport,133G,SCREWFIX,27/01/2020,146136,9.98,0.00,INVOICE NO A5928569047RING HIGH PRFORMANCE HEADLAMPFOR KNOTT END SLIPWAY,Landing Stage Maintenance,,21007,,************1920
Wyre Council,http://opendatacommunities.org/doc/district-council/wyre,27/09/2020,People and Places,Central Services to the Public,131C,Fast Fix Workshop Ltd,27/01/2020,146142,5.82,0.00,LIGHTSEMERGENCY LIGHT FOR ELECTION,Hire of Tools or Equipment,,40101,,************1920
Wyre Council,http://opendatacommunities.org/doc/district-council/wyre,27/09/2020,People and Places,Central Services to the Public,131C,BUILDERS SUPPLIES,27/01/2020,146186,44.50,0.00,INVOICE 0001/00156196,Hire of Tools or Equipment,,40101,,************0987
Wyre Council,http://opendatacommunities.org/doc/district-council/wyre,27/09/2020,People and Places,Central Services to the Public,131C,REDMARSH ROOFING,27/01/2020,146196,28.00,0.00,INVOICE 135918,Hire of Tools or Equipment,,40101,,************0987
Wyre Council,http://opendatacommunities.org/doc/district-council/wyre,27/09/2020,People and Places,Central Services to the Public,131C,BUILDERS SUPPLIES,27/01/2020,146192,129.29,0.00,INVOICE 0001/00156299,Hire of Tools or Equipment,,40101,,************0987
Wyre Council,http://opendatacommunities.org/doc/district-council/wyre,27/09/2020,People and Places,Central Services to the Public,131C,BUILDERS SUPPLIES,27/01/2020,146188,92.81,0.00,INVOICE 0001/00156791,Hire of Tools or Equipment,,40101,,************0987
Wyre Council,http://opendatacommunities.org/doc/district-council/wyre,27/09/2020,People and Places,Environmental Services,132B,FAST FIX WORKSHOP,27/01/2020,146194,5.52,0.00,TIMBER,Materials and Consumables,,42002,,************0987
Wyre Council,http://opendatacommunities.org/doc/district-council/wyre,27/09/2020,People and Places,Environmental Services,132B,FLEETWOOD HAVEN MARINA,27/01/2020,146144,25.00,0.00,INVOICE NO FL1614815 X TIDE TABLES,Materials and Consumables,,42002,,************1920
Wyre Council,http://opendatacommunities.org/doc/district-council/wyre,27/09/2020,People and Places,Support Services,135B,KEYLINE,27/01/2020,146124,125.56,0.00,INVOICE 11A13380DRAINAGE GULLY GRATING,Materials and Consumables,,42002,,************1920
Wyre Council,http://opendatacommunities.org/doc/district-council/wyre,27/09/2020,People and Places,Support Services,135B,SHELL,27/01/2020,146146,40.47,0.00,UNLEADED PETROL,Petrol,,30511,,************1920
Wyre Council,http://opendatacommunities.org/doc/district-council/wyre,27/09/2020,People and Places,Environmental Services,132B,FLEETWOOD HAVEN MARINA,27/01/2020,146148,10.00,0.00,TIDE TABLES,Materials and Consumables,,42002,,************1920
Wyre Council,http://opendatacommunities.org/doc/district-council/wyre,27/09/2020,People and Places,Support Services,135B,wynsors,27/01/2020,146190,28.00,0.00,REDACT boots,Protective Clothing,,41600,,************0987
Wyre Council,http://opendatacommunities.org/doc/district-council/wyre,27/09/2020,People and Places,Central Services to the Public,131C,BUILDERS SUPPLIES (WEST COAST) LTD,27/01/2020,146170,12.49,0.00,RATCHET TIE DOWN SET FOR ELECTIONS,Hire of Tools or Equipment,,40101,,************9017
Wyre Council,http://opendatacommunities.org/doc/district-council/wyre,27/09/2020,People and Places,Highways,133B,BUILDERS SUPPLIES (WEST COAST) LTD,27/01/2020,146172,68.45,0.00,R12672GRIT SAND BULK BAGCEMENT PLASTICLIMESTONE,Seats and Shelters (Non BM),,21012,,************9017
Wyre Council,http://opendatacommunities.org/doc/district-council/wyre,27/09/2020,People and Places,Environmental Services,132B,Fast Fix Workshop Ltd,27/01/2020,146158,1.29,0.00,R11841FLAG POLE CLEAT,Materials and Consumables,,42002,,************9017
Wyre Council,http://opendatacommunities.org/doc/district-council/wyre,27/09/2020,People and Places,Cultural and Related Services,132A,aitch tools and fasteners,27/01/2020,146132,11.64,0.00,various items,Materials and Consumables,,42002,,************1920
Wyre Council,http://opendatacommunities.org/doc/district-council/wyre,27/09/2020,People and Places,Highways,133B,aitch tools and fasteners,27/01/2020,146132,54.00,0.00,various items,Naming of Streets,,28023,,************1920
Wyre Council,http://opendatacommunities.org/doc/district-council/wyre,27/09/2020,People and Places,Support Services,135B,aitch tools and fasteners,27/01/2020,146132,315.08,0.00,various items,Purchase of Tools or Equipment,,40100,,************1920
Wyre Council,http://opendatacommunities.org/doc/district-council/wyre,27/09/2020,People and Places,Environmental Services,132B,BUILDERS SUPPLIES (WEST COAST) LTD,27/01/2020,146092,19.98,0.00,0001/00147393BRIGHT ROUND WIRE NAIL,Materials and Consumables,,42002,,************1920
Wyre Council,http://opendatacommunities.org/doc/district-council/wyre,27/09/2020,People and Places,Support Services,135B,BUILDERS SUPPLIES (WEST COAST) LTD,27/01/2020,146174,105.55,0.00,INVOICE 0001/00132427SAWN CARCASSINGCUTTER SCREW X 3 SIZES,Materials and Consumables,,42002,,************0987
Wyre Council,http://opendatacommunities.org/doc/district-council/wyre,27/09/2020,People and Places,Support Services,135B,DELTICOM,05/02/2020,146542,590.00,0.00,INVOICE NO RD 40915960 UK01327369CONTINENTAL VANCO CONTACT,Tyres,,30503,,************4775
Wyre Council,http://opendatacommunities.org/doc/district-council/wyre,27/09/2020,People and Places,Planning and Development Servs,132C,PROSOL UK,05/02/2020,146540,18.40,0.00,INVOICE 231090MOT SIGNSCLASS 4 &amp; 7VIEWING AREA AVAILABLEDELIVERY CHARGE,Purchase of Tools or Equipment,,40100,,************4775
Wyre Council,http://opendatacommunities.org/doc/district-council/wyre,27/09/2020,People and Places,Support Services,135B,SCREWFIX,05/02/2020,146544,124.99,0.00,A4869115569DEWALT CORDLESS DRILL,Materials and Consumables,,42002,,************4775
Wyre Council,http://opendatacommunities.org/doc/district-council/wyre,27/09/2020,People and Places,Support Services,135B,DYMO EXPRESS,05/02/2020,146546,55.54,0.00,GREEN VINYL TAPE,Materials and Consumables,,42002,,************4775
Wyre Council,http://opendatacommunities.org/doc/district-council/wyre,27/09/2020,Resources,Support Services,135B,Avanti West Coast,05/02/2020,146553,223.50,0.00,Avanti Rail ticket for REDACT Preston to London 28/01/20,Other Travelling Expenses,,33000,,************3707
Wyre Council,http://opendatacommunities.org/doc/district-council/wyre,27/09/2020,Resources,Cultural and Related Services,132A,AMAZON.CO.UK,05/02/2020,146555,48.56,0.00,Amazon order for 2 books for REDACT,Community Arts,,42617,,************3707
Wyre Council,http://opendatacommunities.org/doc/district-council/wyre,27/09/2020,Resources,Environmental Services,132B,Terracycle UK Ltd,05/02/2020,146551,195.12,0.00,Terracycle UK Ltd Waste box order for Ruth Hunter,Community Development Initiatives,,46600,,************3707
Wyre Council,http://opendatacommunities.org/doc/district-council/wyre,27/09/2020,Resources,Support Services,135B,Indeed,06/02/2020,146579,260.00,0.00,Insurance Officer Post Advertisement on Indeed March 2019,Advertising - Recruitment,,15200,,************2135
Wyre Council,http://opendatacommunities.org/doc/district-council/wyre,27/09/2020,Resources,Support Services,135B,Facebook,06/02/2020,146583,30.00,0.00,Web/Digital Officer Advertising Facebook,Advertising - Recruitment,,15200,,************2135
Wyre Council,http://opendatacommunities.org/doc/district-council/wyre,27/09/2020,Resources,Support Services,135B,Indeed,06/02/2020,146581,200.00,0.00,Web/Digital Officer advertised on Indeed,Advertising - Recruitment,,15200,,************2135
Wyre Council,http://opendatacommunities.org/doc/district-council/wyre,27/09/2020,Resources,Support Services,135B,POST OFFICE LTD,06/02/2020,146585,150.00,0.00,Post Office One4All Gift Card 150 - LR,Long Service Award,,16201,,************2135
Wyre Council,http://opendatacommunities.org/doc/district-council/wyre,27/09/2020,Resources,Support Services,135B,Gerry`s Fishing,06/02/2020,146587,150.00,0.00,Gerry`s Fishing Voucher 150 - Long Service Award MB,Long Service Award,,16201,,************2135
Wyre Council,http://opendatacommunities.org/doc/district-council/wyre,27/09/2020,People and Places,Cultural and Related Services,132A,Mailchimp,07/02/2020,146591,19.22,0.00,Mailchimp monthly fee,Advertising - General,,46100,,************1416
Wyre Council,http://opendatacommunities.org/doc/district-council/wyre,27/09/2020,People and Places,Planning and Development Servs,132C,Mailchimp,07/02/2020,146591,19.22,0.00,Mailchimp monthly fee,Other Contributions,,45201,,************1416
Wyre Council,http://opendatacommunities.org/doc/district-council/wyre,27/09/2020,People and Places,Planning and Development Servs,132C,facebook,12/02/2020,146714,1.00,0.00,ice cube blizzard boosted post,Promotions - General,,46104,,************1416
Wyre Council,http://opendatacommunities.org/doc/district-council/wyre,27/09/2020,People and Places,Cultural and Related Services,132A,facebook,13/02/2020,146725,4.14,0.00,facebook post,Advertising - General,,46100,,************1416
Wyre Council,http://opendatacommunities.org/doc/district-council/wyre,27/09/2020,People and Places,Cultural and Related Services,132A,facebook,13/02/2020,146727,6.16,0.00,We three kings boosted post,Advertising - General,,46100,,************1416
Wyre Council,http://opendatacommunities.org/doc/district-council/wyre,27/09/2020,People and Places,Cultural and Related Services,132A,BUILDERS SUPPLIES (WEST COAST) LTD,03/03/2020,147185,34.99,0.00,items from builders supplies,Amenity and Information Signs,,40400,,************1920
Wyre Council,http://opendatacommunities.org/doc/district-council/wyre,27/09/2020,People and Places,Support Services,135B,BUILDERS SUPPLIES (WEST COAST) LTD,03/03/2020,147185,67.96,0.00,items from builders supplies,Purchase of Tools or Equipment,,40100,,************1920
Wyre Council,http://opendatacommunities.org/doc/district-council/wyre,27/09/2020,People and Places,Planning and Development Servs,132C,JW FISH,03/03/2020,147191,8.33,0.00,4 KEYS,Maintenance of Tools or Equipment,,40102,,************1920
Wyre Council,http://opendatacommunities.org/doc/district-council/wyre,27/09/2020,People and Places,Support Services,135B,JW FISH,03/03/2020,147187,3.33,0.00,1 FLASK STOPPER,Purchase of Tools or Equipment,,40100,,************1920
Wyre Council,http://opendatacommunities.org/doc/district-council/wyre,27/09/2020,People and Places,Planning and Development Servs,132C,ASDA STORES LTD,03/03/2020,147189,81.67,0.00,ORDER NUMBER 68622849NUMATIC CYCLINDER VACUUM,Cleaning Materials,,40501,,************1920
Wyre Council,http://opendatacommunities.org/doc/district-council/wyre,27/09/2020,People and Places,Environmental Services,132B,BUILDERS SUPPLIES,03/03/2020,147213,62.20,0.00,GRIT SANDCEMENT PLASTIC,Engineering and Maintenance Team,,78013,,************0987
Wyre Council,http://opendatacommunities.org/doc/district-council/wyre,27/09/2020,People and Places,Planning and Development Servs,132C,SCREWFIX,03/03/2020,147193,6.66,0.00,GORILLA,Maintenance of Tools or Equipment,,40102,,************1920
Wyre Council,http://opendatacommunities.org/doc/district-council/wyre,27/09/2020,People and Places,Planning and Development Servs,132C,SCREWFIX,03/03/2020,147195,116.66,0.00,A6071180131PUSH BUTTON LOCK WITH KEY,Maintenance of Tools or Equipment,,40102,,************1920
Wyre Council,http://opendatacommunities.org/doc/district-council/wyre,27/09/2020,People and Places,Support Services,135B,SCREWFIX,03/03/2020,147197,41.96,0.00,A6071180195JACK PRUNING SAWBYPASS LOPPER,Purchase of Tools or Equipment,,40100,,************1920
Wyre Council,http://opendatacommunities.org/doc/district-council/wyre,27/09/2020,People and Places,Cultural and Related Services,132A,HUWS GRAY LTD,03/03/2020,147217,472.55,0.00,R12785INVOICE S8811720VARIOUS SIZES OF KILN DRIED SAPELE,Engineering and Maintenance Team,,78013,,************0987
Wyre Council,http://opendatacommunities.org/doc/district-council/wyre,27/09/2020,People and Places,Highways,133B,SOUTH PLANKS,03/03/2020,147215,75.95,0.00,R12352INVOICE 3340FRENCH OAK,"Street Furniture, Memorials - (Non BM)",,21067,,************0987
Wyre Council,http://opendatacommunities.org/doc/district-council/wyre,27/09/2020,People and Places,Environmental Services,132B,BUILDERS SUPPLIES (WEST COAST) LTD,03/03/2020,147209,29.81,0.00,INVOICE NO 0001/00158609TILT FILLET TREATED,Materials and Consumables,,42002,,************0987
Wyre Council,http://opendatacommunities.org/doc/district-council/wyre,27/09/2020,People and Places,Environmental Services,132B,BUILDERS SUPPLIES (WEST COAST) LTD,03/03/2020,147211,34.95,0.00,INVOICE NO 0001/00158781EISENHOWER BLACK TROUSERS,Materials and Consumables,,42002,,************0987
Wyre Council,http://opendatacommunities.org/doc/district-council/wyre,27/09/2020,People and Places,Support Services,135B,RIBA BOOKS,03/03/2020,147199,66.00,0.00,2 XZ JCT: MINOR WORKS BUILDING CONTRACT 2018,Purchase of Publications,,42302,,************1920
Wyre Council,http://opendatacommunities.org/doc/district-council/wyre,27/09/2020,People and Places,Support Services,135B,ASDA,03/03/2020,147201,7.50,0.00,KETTLE,Purchase of Tools or Equipment,,40100,,************1920
Wyre Council,http://opendatacommunities.org/doc/district-council/wyre,27/09/2020,People and Places,Support Services,135B,BUILDERS SUPPLIES (WEST COAST) LTD,03/03/2020,147203,89.48,0.00,INVOICE NO 0001/00159137TANALISED TIMBER POSTTANALISED SAWN CARCASSINGREISSER CUTTER SCREW,Routine Maintenance,,28015,,************0987
Wyre Council,http://opendatacommunities.org/doc/district-council/wyre,27/09/2020,People and Places,Support Services,135B,J W FISH LTD,03/03/2020,147205,23.99,0.00,R12785NATURAL OAK STAIN,Materials and Consumables,,42002,,************0987
Wyre Council,http://opendatacommunities.org/doc/district-council/wyre,27/09/2020,People and Places,Environmental Services,132B,BUILDERS SUPPLIES (WEST COAST) LTD,03/03/2020,147207,29.81,0.00,INVOICE 0001/00159395TILT FILLET TREATED,Materials and Consumables,,42002,,************0987
Wyre Council,http://opendatacommunities.org/doc/district-council/wyre,27/09/2020,People and Places,Support Services,135B,DVLA,04/03/2020,147260,262.50,0.00,Road Tax V07,Licences/MOT Certificates,,30502,,************4775
Wyre Council,http://opendatacommunities.org/doc/district-council/wyre,27/09/2020,People and Places,Planning and Development Servs,132C,PAY CAPITA,04/03/2020,147262,410.00,0.00,MOT-01-20200129-161852-12696F66MOT SLOTS,Licences/MOT Certificates,,30502,,************4775
Wyre Council,http://opendatacommunities.org/doc/district-council/wyre,27/09/2020,People and Places,Support Services,135B,KWIK FIT,04/03/2020,147264,103.33,0.00,INVOICE NO 85044915/93529017505/935PART FOR PK12 MVU,Tyres,,30503,,************4775
Wyre Council,http://opendatacommunities.org/doc/district-council/wyre,27/09/2020,People and Places,Highways,133B,STONE UK LTD,04/03/2020,147254,1500.00,0.00,INVOICE NO 12468RECLAIMED YORKSTONE PAVING,Maint. of Unadopted Assets - Engineers,,28014,,************4775
Wyre Council,http://opendatacommunities.org/doc/district-council/wyre,27/09/2020,People and Places,Support Services,135B,SCREWFIX,04/03/2020,147258,110.09,0.00,INVOICE NO A6028175974CASSETTE TAPELABEL PRINTING MACHINE,Materials and Consumables,,42002,,************4775
Wyre Council,http://opendatacommunities.org/doc/district-council/wyre,27/09/2020,People and Places,Planning and Development Servs,132C,KWIK FIT,04/03/2020,147266,30.00,0.00,INVOICE 85225371/93504023903/935MF16 HLDMOT TESTING,Licences/MOT Certificates,,30502,,************4775
Wyre Council,http://opendatacommunities.org/doc/district-council/wyre,27/09/2020,People and Places,Planning and Development Servs,132C,KWIK FIT,04/03/2020,147268,30.00,0.00,INVOICE NO 85202922/93504023897/935EJ09 GMXMOT TESTING,Licences/MOT Certificates,,30502,,************4775
Wyre Council,http://opendatacommunities.org/doc/district-council/wyre,27/09/2020,People and Places,Planning and Development Servs,132C,C & H TEST CENTRE,04/03/2020,147270,30.00,0.00,NV08 FRPTAXI TEST,Licences/MOT Certificates,,30502,,************4775
Wyre Council,http://opendatacommunities.org/doc/district-council/wyre,27/09/2020,People and Places,Planning and Development Servs,132C,C & H TEST CENTRE,04/03/2020,147272,30.00,0.00,MM03 EUNMOT TESTING,Licences/MOT Certificates,,30502,,************4775
Wyre Council,http://opendatacommunities.org/doc/district-council/wyre,27/09/2020,People and Places,Planning and Development Servs,132C,KWIK FIT,04/03/2020,147274,30.00,0.00,INVOICE NO 85194726/93504023910/935FP12 YULMOT TESTING,Licences/MOT Certificates,,30502,,************4775
Wyre Council,http://opendatacommunities.org/doc/district-council/wyre,27/09/2020,People and Places,Planning and Development Servs,132C,KWIK FIT,04/03/2020,147276,30.00,0.00,TAXI MOT MM17 KUB,Licences/MOT Certificates,,30502,,************4775
Wyre Council,http://opendatacommunities.org/doc/district-council/wyre,27/09/2020,People and Places,Planning and Development Servs,132C,AMAZON,04/03/2020,147256,38.32,0.00,CABLE FOR MOT MONITOR,Licences/MOT Certificates,,30502,,************4775
Wyre Council,http://opendatacommunities.org/doc/district-council/wyre,27/09/2020,People and Places,Support Services,135B,SCREWFIX,04/03/2020,147280,1.32,0.00,PCL STANDARD 1/4 FEMALE ADAPTOR,Routine Maintenance,,28015,,************9017
Wyre Council,http://opendatacommunities.org/doc/district-council/wyre,27/09/2020,People and Places,Support Services,135B,BIGTYRES.CO.UK,04/03/2020,147252,432.00,0.00,INVOICE IN-31475,Tyres,,30503,,************4775
Wyre Council,http://opendatacommunities.org/doc/district-council/wyre,27/09/2020,People and Places,Support Services,135B,C & C SUPPLIES COLLINSON LTD,04/03/2020,147282,63.27,0.00,INV0002-0000085707MULTI STEEL GRIND DISCVARNISH,Maintenance of Tools or Equipment,,40102,,************9017
Wyre Council,http://opendatacommunities.org/doc/district-council/wyre,27/09/2020,People and Places,Cultural and Related Services,132A,Facebook,05/03/2020,147370,17.00,0.00,boosted post,Advertising - General,,46100,,************1416
Wyre Council,http://opendatacommunities.org/doc/district-council/wyre,27/09/2020,People and Places,Cultural and Related Services,132A,Mailchimp,05/03/2020,147374,19.26,0.00,Feb invoice,Advertising - General,,46100,,************1416
Wyre Council,http://opendatacommunities.org/doc/district-council/wyre,27/09/2020,People and Places,Planning and Development Servs,132C,Mailchimp,05/03/2020,147374,19.26,0.00,Feb invoice,Other Contributions,,45201,,************1416
Wyre Council,http://opendatacommunities.org/doc/district-council/wyre,27/09/2020,People and Places,Support Services,135B,Issuu,05/03/2020,147372,332.53,0.00,Annual subscription,Public Relations,,46107,,************1416
Wyre Council,http://opendatacommunities.org/doc/district-council/wyre,27/09/2020,People and Places,Cultural and Related Services,132A,Facebook,09/03/2020,147453,30.00,0.00,Great Outdoors brochure ad,Promotions - General,,46104,,************1416
Wyre Council,http://opendatacommunities.org/doc/district-council/wyre,27/09/2020,People and Places,Support Services,135B,Amazon,09/03/2020,147455,24.99,0.00,Amazon - ipad case,Public Relations,,46107,,************1416
Wyre Council,http://opendatacommunities.org/doc/district-council/wyre,27/09/2020,Resources,Support Services,135B,Facebook,09/03/2020,147422,1.50,0.00,Facebook Planning Services Vacancy Boost Post 1.50,Advertising - Recruitment,,15200,,************2135
Wyre Council,http://opendatacommunities.org/doc/district-council/wyre,27/09/2020,Resources,Support Services,135B,Facebook,09/03/2020,147424,1.50,0.00,Facebook Planning Services Vacancy Boost Post 1.50,Advertising - Recruitment,,15200,,************2135
Wyre Council,http://opendatacommunities.org/doc/district-council/wyre,27/09/2020,Resources,Support Services,135B,Facebook,09/03/2020,147426,2.00,0.00,Facebook Planning Services Vacancy Boost Post 2.00,Advertising - Recruitment,,15200,,************2135
Wyre Council,http://opendatacommunities.org/doc/district-council/wyre,27/09/2020,Resources,Support Services,135B,Facebook,09/03/2020,147428,1.50,0.00,Facebook Planning Services Vacancy Boost Post 1.50,Advertising - Recruitment,,15200,,************2135
Wyre Council,http://opendatacommunities.org/doc/district-council/wyre,27/09/2020,Resources,Support Services,135B,Facebook,09/03/2020,147430,3.00,0.00,Facebook Planning Services Vacancy Boost Post 3.00,Advertising - Recruitment,,15200,,************2135
Wyre Council,http://opendatacommunities.org/doc/district-council/wyre,27/09/2020,Resources,Support Services,135B,Facebook,09/03/2020,147432,3.00,0.00,Facebook Planning Services Vacancy Boost Post 3.00,Advertising - Recruitment,,15200,,************2135
Wyre Council,http://opendatacommunities.org/doc/district-council/wyre,27/09/2020,Resources,Support Services,135B,Facebook,09/03/2020,147434,5.00,0.00,Facebook Planning Services Vacancy Boost Post 5.00,Advertising - Recruitment,,15200,,************2135
Wyre Council,http://opendatacommunities.org/doc/district-council/wyre,27/09/2020,Resources,Support Services,135B,LinkedIn,09/03/2020,147436,70.11,0.00,ICT Solutions Architect Advertising on LinkedIn 70.11,Advertising - Recruitment,,15200,,************2135
Wyre Council,http://opendatacommunities.org/doc/district-council/wyre,27/09/2020,People and Places,Cultural and Related Services,132A,Asda Supermarkets,10/03/2020,147515,6.83,0.00,"1x Star Anise, 1x Bay Leaves, 1x Cinnamon, 1x Cloves, 1x Nutmeg - 6.631x Net of Oranges - 1.50(a",Event Hospitality,,46842,,************5113
Wyre Council,http://opendatacommunities.org/doc/district-council/wyre,27/09/2020,People and Places,Cultural and Related Services,132A,C & C SUPPLIES COLLINSON LTD,10/03/2020,147523,72.37,0.00,Safety Wellingtons - 19.99(above for D. Byrne - PPE)2x Combination Padlocks - 66.86(above for W,Purchase of Tools or Equipment,,40100,,************5113
Wyre Council,http://opendatacommunities.org/doc/district-council/wyre,27/09/2020,People and Places,Cultural and Related Services,132A,TAMARACK OUTDOORS,10/03/2020,147519,84.97,0.00,Tool Sharpener - 101.96(above for WECP Workshop &amp; C&amp;C Tools),Purchase of Tools or Equipment,,40100,,************5113
Wyre Council,http://opendatacommunities.org/doc/district-council/wyre,27/09/2020,People and Places,Cultural and Related Services,132A,B&amp;amp;M Retail Ltd,10/03/2020,147513,19.08,0.00,Xmas Decorations - 20.91Napkins - 1.99(above for WECP Xmas Fayre),Special Events,,46522,,************5113
Wyre Council,http://opendatacommunities.org/doc/district-council/wyre,27/09/2020,People and Places,Cultural and Related Services,132A,Karnival Costumes,10/03/2020,147511,7.70,0.00,FAther Christmas Beard  - 6.25(Above for WECP Xmas Fayre),Special Events,,46522,,************5113
Wyre Council,http://opendatacommunities.org/doc/district-council/wyre,27/09/2020,People and Places,Cultural and Related Services,132A,Party Delight.co.uk,10/03/2020,147521,14.12,0.00,Santas long wig - 12.99(above for WECP Xmas Fayre),Special Events,,46522,,************5113
Wyre Council,http://opendatacommunities.org/doc/district-council/wyre,27/09/2020,People and Places,Cultural and Related Services,132A,Home Bargins,10/03/2020,147509,137.91,0.00,2x Bag - 1.98Chocolate bars (for Santas Presents/Tombola) - 59.14Christmas Decorations - 96.45,Special Events,,46522,,************5113
Wyre Council,http://opendatacommunities.org/doc/district-council/wyre,27/09/2020,People and Places,Cultural and Related Services,132A,Lidl Supermarket,10/03/2020,147533,33.32,0.00,Microscope - 39.99(above for use at Rossall Point Tower),Purchase of Tools or Equipment,,40100,,************5113
Wyre Council,http://opendatacommunities.org/doc/district-council/wyre,27/09/2020,People and Places,Cultural and Related Services,132A,screwfix.com,10/03/2020,147525,37.15,0.00,1x Tarpaulin Sheet - 19.991x 4 Gang Cable Reel - 24.59(above for Coast &amp; Countryside Events),Purchase of Tools or Equipment,,40100,,************5113
Wyre Council,http://opendatacommunities.org/doc/district-council/wyre,27/09/2020,People and Places,Cultural and Related Services,132A,Screwfix.com,10/03/2020,147517,17.27,0.00,8 Packs of Dowls - 20.72(above for Ranger Craft Activities),Materials and Consumables,,42002,,************5113
Wyre Council,http://opendatacommunities.org/doc/district-council/wyre,27/09/2020,People and Places,Cultural and Related Services,132A,Morrisons Supermarket,10/03/2020,147531,6.67,0.00,Sterilising Fluid - 5.00Washing Up Liquid - 4.00(above for Rossall Point Tower),Materials and Consumables,,42002,,************5113
Wyre Council,http://opendatacommunities.org/doc/district-council/wyre,27/09/2020,People and Places,Cultural and Related Services,132A,B &amp;amp; S Supplies - Garst,10/03/2020,147529,6.99,0.00,Plastic Cups - 0.85Paint Brushes - 2.79Tablecloths - 4.76(above for Ranger Activities at Garst,Materials and Consumables,,42002,,************5113
Wyre Council,http://opendatacommunities.org/doc/district-council/wyre,27/09/2020,People and Places,Cultural and Related Services,132A,Morrisons Supermarket,10/03/2020,147535,20.00,0.00,6x Alcohol free wine - 24.00(above for New Year Day event at Rossall Point Tower),Event Hospitality,,46842,,************5113
Wyre Council,http://opendatacommunities.org/doc/district-council/wyre,27/09/2020,People and Places,Cultural and Related Services,132A,Asda Supermarket,10/03/2020,147537,20.22,0.00,Tea - 7.00Coffee - 9.00Milk - 2.15Sugar - 2.07(above for New Years Day Event and Volunteers,Event Hospitality,,46842,,************5113
Wyre Council,http://opendatacommunities.org/doc/district-council/wyre,27/09/2020,People and Places,Cultural and Related Services,132A,Morrisons Supermarket,10/03/2020,147539,20.00,0.00,6x Non Alcoholic wine - 24.00(above for the New Years Day Event ay Rossall Point Tower),Event Hospitality,,46842,,************5113
Wyre Council,http://opendatacommunities.org/doc/district-council/wyre,27/09/2020,People and Places,Cultural and Related Services,132A,Morrisons Supermarket,10/03/2020,147527,45.83,0.00,Tea - 15.00Milk - 4.40Coffee - 33.00Hot Chocolate - 8.10(above for Volunteers and Events),Event Hospitality,,46842,,************5113
Wyre Council,http://opendatacommunities.org/doc/district-council/wyre,27/09/2020,People and Places,Cultural and Related Services,132A,THE PLANT PLACE,10/03/2020,147541,45.00,0.00,"3x Compost 24.003x Top Soil 30.00(above for Raised Beds in Outdoor Classroom, WECP)",Conservation,,21065,,************5113
Wyre Council,http://opendatacommunities.org/doc/district-council/wyre,27/09/2020,Resources,Support Services,135B,Amazon,16/03/2020,147749,20.73,0.00,Raspberry Pi 3 Power adapter UK/EU 5V 2.5AASIN: B01CCR5P8UOrder # 203-8431668-2615565,Comp Hardware Purchases,,43500,,************1859
Wyre Council,http://opendatacommunities.org/doc/district-council/wyre,27/09/2020,Resources,Support Services,135B,"DRI*Kofax, Inc.",16/03/2020,147745,441.67,0.00,Order #13614871510Product SKU: VP-DE05-0001Product Name: Kofax VRS Elite DesktopQty Ordered: 1Am,Comp Hardware Purchases,,43500,,************1859
Wyre Council,http://opendatacommunities.org/doc/district-council/wyre,27/09/2020,Resources,Support Services,135B,Amazon,16/03/2020,147747,299.99,0.00,Epson EB-W05 WXGA 3300 Lumens Projector - WhiteASIN: B075ZST33KOrder # 203-9190909-9884338,Comp Hardware Purchases,,43500,,************1859
Wyre Council,http://opendatacommunities.org/doc/district-council/wyre,27/09/2020,Resources,Non Service Related Exp,137F,AMAZON.CO.UK,16/03/2020,147751,139.72,0.00,x28 [2 Pack] Tablet Screen Protector Tempered Glass For Samsung Galaxy TabA 10.5 inch 2018 T590/T59,Contract (New CCR),,04020,,************1859
Wyre Council,http://opendatacommunities.org/doc/district-council/wyre,27/09/2020,Resources,Non Service Related Exp,137F,AMAZON.CO.UK,16/03/2020,147753,499.50,0.00,x50 Spigen Smart Fold Designed for Samsung Galaxy Tab A 10.5 Case (2018)(SM-T590/SM-T595) - Black,Contract (New CCR),,04020,,************1859
Wyre Council,http://opendatacommunities.org/doc/district-council/wyre,27/09/2020,Resources,Housing General Fund,134A,AMZNMKTPLACE AMAZON.CO,16/03/2020,147779,12.02,0.00,REDACT,Mobile Devices,,43103,,************1859
Wyre Council,http://opendatacommunities.org/doc/district-council/wyre,27/09/2020,Resources,Housing General Fund,134A,AMZNMKTPLACE,16/03/2020,147769,10.32,0.00,REDACT,Mobile Devices,,43103,,************1859
Wyre Council,http://opendatacommunities.org/doc/district-council/wyre,27/09/2020,Resources,Support Services,135B,AMZNMKTPLACE,16/03/2020,147767,10.32,0.00,x2 Case Collection Premium Leather Folio Cover for Samsung Galaxy A40Case (5.9&quot;) Magnetic Clos,Purchase of Tools or Equipment,,40100,,************1859
Wyre Council,http://opendatacommunities.org/doc/district-council/wyre,27/09/2020,Resources,Support Services,135B,AMZNMKTPLACE,16/03/2020,147761,13.24,0.00,"x2 KuGi. for samsung galaxy A40 Screen Protector, 9H Hardness HD clearEasy &amp; Bubble Free Instal",Purchase of Tools or Equipment,,40100,,************1859
Wyre Council,http://opendatacommunities.org/doc/district-council/wyre,27/09/2020,Resources,Support Services,135B,AMZNMKTPLACE AMAZON.CO,16/03/2020,147763,61.92,0.00,x12 Case Collection Premium Leather Folio Cover for Samsung Galaxy A40Case (5.9&quot;) Magnetic Clo,Purchase of Tools or Equipment,,40100,,************1859
Wyre Council,http://opendatacommunities.org/doc/district-council/wyre,27/09/2020,Resources,Support Services,135B,AMZNMKTPLACE AMAZON.CO,16/03/2020,147755,46.34,0.00,"KuGi. for samsung galaxy A40 Screen Protector, 9H Hardness HD clearEasy & Bubble Free Installation",Purchase of Tools or Equipment,,40100,,************1859
Wyre Council,http://opendatacommunities.org/doc/district-council/wyre,27/09/2020,Resources,Support Services,135B,AMZNMKTPLACE,16/03/2020,147771,22.47,0.00,"x3 Anker� USB 3.0 Card Reader 8-in-1 for SDXC, SDHC, SD, MMC, RS-MMC,Micro SDXC, Micro SD, Micro SD",Purchase of Tools or Equipment,,40100,,************1859
Wyre Council,http://opendatacommunities.org/doc/district-council/wyre,27/09/2020,Resources,Non Service Related Exp,137F,AMZNMKTPLACE,16/03/2020,147757,9.99,0.00,x1 Spigen Smart Fold Designed for Samsung Galaxy Tab A 10.5 Case (2018)(SM-T590/SM-T595) - Black,Contract (New CCR),,04020,,************1859
Wyre Council,http://opendatacommunities.org/doc/district-council/wyre,27/09/2020,Resources,Non Service Related Exp,137F,AMZNMKTPLACE,16/03/2020,147759,89.91,0.00,x9 Spigen Smart Fold Designed for Samsung Galaxy Tab A 10.5 Case (2018)(SM-T590/SM-T595) - Black,Contract (New CCR),,04020,,************1859
Wyre Council,http://opendatacommunities.org/doc/district-council/wyre,27/09/2020,Resources,Non Service Related Exp,137F,AMZNMKTPLACE,16/03/2020,147765,74.90,0.00,"x10 ELTD Screen Protector for Samsung Galaxy Tab A 10.5SM-T590/T595,Premium 9H Hardness 2.5D Round",Contract (New CCR),,04020,,************1859
Wyre Council,http://opendatacommunities.org/doc/district-council/wyre,27/09/2020,Resources,Support Services,135B,AMZNMKTPLACE,16/03/2020,147773,16.64,0.00,"x4 QICENT DP to DVI-D Cable 3M Displayport to DVI Male Gold Plated For DELL XPS12,iMac,MacBook Pro-B",Comp Hardware Purchases,,43500,,************1859
Wyre Council,http://opendatacommunities.org/doc/district-council/wyre,27/09/2020,Resources,Support Services,135B,AMZNMKTPLACE,16/03/2020,147777,37.49,0.00,x1 Yaheetech Garage Shelving Units - 180cm x 120cm x 60cm 5 Tier HeavyDuty Racking Shelves for Stor,Comp Hardware Purchases,,43500,,************1859
Wyre Council,http://opendatacommunities.org/doc/district-council/wyre,27/09/2020,Resources,Support Services,135B,AMAZON.CO.UK M69JT70O4,16/03/2020,147775,1.00,0.00,x1 Rolson 50535 5m x 19mm Measure Tape,Comp Hardware Purchases,,43500,,************1859
Wyre Council,http://opendatacommunities.org/doc/district-council/wyre,27/09/2020,Resources,Environmental Services,132B,AMAZON.CO.UK MH9ZW6AB4,16/03/2020,147785,101.62,0.00,"x2 WD Purple 2 TB Surveillance Hard Disk Drive, Intellipower 3.5 Inch SATA 6Gb/s 64 MB Cache 5400 r",CCTV Running Costs,,46831,,************1859
Wyre Council,http://opendatacommunities.org/doc/district-council/wyre,27/09/2020,Resources,Non Service Related Exp,137F,AMZNMKTPLACE,16/03/2020,147783,112.54,0.00,"x17 Pjp Electronics Tablet Stand Multi-Angle, Stand, Desktop Holder CompatibleWith iPad, mini, Air",Contract (New CCR),,04020,,************1859
Wyre Council,http://opendatacommunities.org/doc/district-council/wyre,27/09/2020,Resources,Support Services,135B,AMZNMKTPLACE,16/03/2020,147805,9.16,0.00,x1 Vertical Ergonomic USB Mouse | Optical Model | Mice with Ergonomicdesign | prevention against mo,Comp Hardware Purchases,,43500,,************1859
Wyre Council,http://opendatacommunities.org/doc/district-council/wyre,27/09/2020,Resources,Non Service Related Exp,137F,AMZNMKTPLACE AMAZON.CO,16/03/2020,147803,66.64,0.00,"x2 Samsung Galaxy Tab A 10.5 (2018) Case Cover with Wireless BluetoothKeyboard, for Samsung Galaxy",Contract (New CCR),,04020,,************1859
Wyre Council,http://opendatacommunities.org/doc/district-council/wyre,27/09/2020,Resources,Support Services,135B,AMAZON.CO.UK MH1AQ05B4,16/03/2020,147795,34.99,0.00,"x1 180cm x 120cm x 45cm, Black 5 Tier (175KG Per Shelf), 875KG CapacityExtra Wide Garage Shed Stora",Comp Hardware Purchases,,43500,,************1859
Wyre Council,http://opendatacommunities.org/doc/district-council/wyre,27/09/2020,Resources,Support Services,135B,AMZNMKTPLACE AMAZON.CO,16/03/2020,147815,9.16,0.00,"x1 Anker� Ergonomic Optical USB Wired Vertical Mouse 1000 / 1600 DPI, 5 Buttons",Comp Hardware Purchases,,43500,,************1859
Wyre Council,http://opendatacommunities.org/doc/district-council/wyre,27/09/2020,Resources,Support Services,135B,AMAZON.CO.UK MH64V7KU4,16/03/2020,147811,249.99,0.00,Wacom PTH-660-N Intuos Pro Pen Tablet (Size: M)/Medium ProfessionalGraphic Tablet Including Wacom P,Comp Hardware Purchases,,43500,,************1859
Wyre Council,http://opendatacommunities.org/doc/district-council/wyre,27/09/2020,Resources,Support Services,135B,AMZNMKTPLACE AMAZON.CO,16/03/2020,147799,3.32,0.00,H&S Cable Ties Reusable 50pcs Straps Adjustable Releasable Tidy WrapHook and Loop Long Large Strong,Comp Hardware Purchases,,43500,,************1859
Wyre Council,http://opendatacommunities.org/doc/district-council/wyre,27/09/2020,Resources,Support Services,135B,AMAZON.CO.UK MH38Z3QZ4,16/03/2020,147797,38.24,0.00,"x2 Igenix DF1655 Pedestal Fan, 16 Inch, 3 Speed, Quiet Operation, Oscillating,Adjustable Height, Co",Comp Hardware Purchases,,43500,,************1859
Wyre Council,http://opendatacommunities.org/doc/district-council/wyre,27/09/2020,Resources,Non Service Related Exp,137F,AMZNMKTPLACE,16/03/2020,147807,149.20,0.00,"x20 Pjp Electronics Tablet Stand Multi-Angle, Stand, Desktop Holder CompatibleWith iPad, mini, Air",Contract (New CCR),,04020,,************1859
Wyre Council,http://opendatacommunities.org/doc/district-council/wyre,27/09/2020,Resources,Non Service Related Exp,137F,AMZNMKTPLACE,16/03/2020,147801,58.10,0.00,"x35 TB1 Products Stylus Touch Pens for Apple Ipads,Ipad Mini,Mobile Phones,& Tablets - Black Metal",Contract (New CCR),,04020,,************1859
Wyre Council,http://opendatacommunities.org/doc/district-council/wyre,27/09/2020,Resources,Non Service Related Exp,137F,AMZNMKTPLACE,16/03/2020,147809,149.20,0.00,"x20 Pjp Electronics Tablet Stand Multi-Angle, Stand, Desktop Holder CompatibleWith iPad, mini, Air",Contract (New CCR),,04020,,************1859
Wyre Council,http://opendatacommunities.org/doc/district-council/wyre,27/09/2020,Resources,Non Service Related Exp,137F,AMZNMKTPLACE AMAZON.CO,16/03/2020,147813,66.56,0.00,"Fone-Stuff Genuine Galaxy S10, S10 Plus, S10E Lite S9 S9  Plus/S8 A5 A7 (2017) Charger - Official Fa",Contract (New CCR),,04020,,************1859
Wyre Council,http://opendatacommunities.org/doc/district-council/wyre,27/09/2020,Resources,Support Services,135B,AMAZON.CO.UK MO9NN56F4,16/03/2020,147845,112.13,0.00,x1 Dell P2419H 24 Inch Full High Definition IPS LED Monitor,Comp Hardware Purchases,,43500,,************1859
Wyre Council,http://opendatacommunities.org/doc/district-council/wyre,27/09/2020,Resources,Support Services,135B,AMAZON.CO.UK MO0BG1844,16/03/2020,147841,24.57,0.00,Logitech R500 Bluetooth and USB Laser Presenter/Presentation Clicker,Comp Hardware Purchases,,43500,,************1859
Wyre Council,http://opendatacommunities.org/doc/district-council/wyre,27/09/2020,Resources,Support Services,135B,AMZNMKTPLACE,16/03/2020,147839,26.56,0.00,x8 H&S Cable Ties Reusable 50pcs Straps Adjustable Releasable Tidy WrapHook and Loop Long Large Str,Comp Hardware Purchases,,43500,,************1859
Wyre Council,http://opendatacommunities.org/doc/district-council/wyre,27/09/2020,Resources,Support Services,135B,AMZNMKTPLACE,16/03/2020,147821,10.82,0.00,x1 3M Right Angled Angle Kettle Type IEC Mains Power Cable Lead,Comp Hardware Purchases,,43500,,************1859
Wyre Council,http://opendatacommunities.org/doc/district-council/wyre,27/09/2020,Resources,Support Services,135B,AMZNMKTPLACE AMAZON.CO,16/03/2020,147817,87.94,0.00,"x6 HDMI to VGA, Benfei Gold-Plated HDMI to VGA 6 Feet Cable (Male to Male)for Computer, Desktop, La",Comp Hardware Purchases,,43500,,************1859
Wyre Council,http://opendatacommunities.org/doc/district-council/wyre,27/09/2020,Resources,Support Services,135B,AMZNMKTPLACE,16/03/2020,147793,30.82,0.00,"SZILBZ iPad Keyboard Case 9.7 for iPad 2018 (6th Gen)/iPad 2017 (5thGen)/iPad Pro 9.7/iPad Air 2&1,",Comp Hardware Purchases,,43500,,************1859
Wyre Council,http://opendatacommunities.org/doc/district-council/wyre,27/09/2020,Resources,Support Services,135B,AMZNMKTPLACE,16/03/2020,147789,84.12,0.00,CAT B35 4GB SIM-Free Mobile Phone in Black,Comp Hardware Purchases,,43500,,************1859
Wyre Council,http://opendatacommunities.org/doc/district-council/wyre,27/09/2020,Resources,Non Service Related Exp,137F,AMZNMKTPLACE,16/03/2020,147791,132.50,0.00,"x1 Apple Smart Keyboard (for iPad 10.2-Inch, iPad Air 10.5-Inch, iPad Pro 10.5-Inch) - British Engli",Contract (New CCR),,04020,,************1859
Wyre Council,http://opendatacommunities.org/doc/district-council/wyre,27/09/2020,Resources,Non Service Related Exp,137F,AMZNMKTPLACE,16/03/2020,147819,22.46,0.00,IVSO Keyboard Case for Samsung T590/T595 Galaxy Tab A 10.5 2018,Contract (New CCR),,04020,,************1859
Wyre Council,http://opendatacommunities.org/doc/district-council/wyre,27/09/2020,Resources,Non Service Related Exp,137F,VOODOOSMS,16/03/2020,147843,174.00,0.00,VoodooSMS Text Message Order,Contract (New CCR),,04020,,************1859
Wyre Council,http://opendatacommunities.org/doc/district-council/wyre,27/09/2020,Resources,Non Service Related Exp,137F,AMAZON.CO.UK MO5DU36Z4,16/03/2020,147787,39.29,0.00,x1 Microsoft Wireless Display V2 Adapter - Black,Contract (New CCR),,04020,,************1859
Wyre Council,http://opendatacommunities.org/doc/district-council/wyre,27/09/2020,Resources,Support Services,135B,AMZNMKTPLACE,16/03/2020,147823,6.66,0.00,Triplast 178 x 127 x 127mm Small Single Wall 7x5x5 Shipping MailingPostal Gift Cuboid Cardboard Box,Comp Hardware Purchases,,43500,,************1859
Wyre Council,http://opendatacommunities.org/doc/district-council/wyre,27/09/2020,Resources,Support Services,135B,AMZNMKTPLACE AMAZON.CO,16/03/2020,147847,82.00,0.00,Order # 206-4863743-3433115,Comp Hardware Purchases,,43500,,************1859
Wyre Council,http://opendatacommunities.org/doc/district-council/wyre,27/09/2020,Resources,Support Services,135B,AMAZON.CO.UK JG3YU01X5,16/03/2020,147837,25.86,0.00,x6 AmazonBasics DisplayPort to DisplayPort Cable - 3 Feet,Comp Hardware Purchases,,43500,,************1859
Wyre Council,http://opendatacommunities.org/doc/district-council/wyre,27/09/2020,Resources,Support Services,135B,AMZNMKTPLACE,16/03/2020,147835,18.40,0.00,Order # 202-1170738-6306746,Comp Hardware Purchases,,43500,,************1859
Wyre Council,http://opendatacommunities.org/doc/district-council/wyre,27/09/2020,Resources,Support Services,135B,AMAZON.CO.UK 7S0PD7IF5,16/03/2020,147833,36.40,0.00,Order # 206-9817267-3273135,Comp Hardware Purchases,,43500,,************1859
Wyre Council,http://opendatacommunities.org/doc/district-council/wyre,27/09/2020,Resources,Support Services,135B,AMAZON.CO.UK JE8NU9LO5,16/03/2020,147831,39.24,0.00,"x3 AmazonBasics 15.6-Inch(40 cm) Laptop Computer and Tablet Shoulder BagCarrying Case, Black, 1-Pac",Comp Hardware Purchases,,43500,,************1859
Wyre Council,http://opendatacommunities.org/doc/district-council/wyre,27/09/2020,Resources,Support Services,135B,AMZNMKTPLACE,16/03/2020,147825,11.65,0.00,Pack of 25 Single Wall A4 Cardboard Packing Postal Boxes - 12 x 9 x 4Order # 206-6798011-3644310,Comp Hardware Purchases,,43500,,************1859
Wyre Council,http://opendatacommunities.org/doc/district-council/wyre,27/09/2020,Resources,"Cultural, Environ and Planning",137B,AMZNMKTPLACE,16/03/2020,147827,49.25,0.00,"NETGEAR 6000450 MIMO 2 TS-9 Antenna for Aircard Mobile Hotspots and USB Modems, Black",Consultants Fees (New CCR),,04022,,************1859
Wyre Council,http://opendatacommunities.org/doc/district-council/wyre,27/09/2020,Resources,"Cultural, Environ and Planning",137B,AMAZON.CO.UK MP9JW3MX5,16/03/2020,147829,245.82,0.00,Order # 202-7893092-5771506,Consultants Fees (New CCR),,04022,,************1859
Wyre Council,http://opendatacommunities.org/doc/district-council/wyre,27/09/2020,Resources,Housing General Fund,134A,Argos Cleveleys,18/03/2020,147935,10.00,0.00,REDACT,Rough Sleeper Project/NSNO,,46846,,************6498
Wyre Council,http://opendatacommunities.org/doc/district-council/wyre,27/09/2020,Resources,Housing General Fund,134A,Argos Cleveleys,18/03/2020,147937,27.47,0.00,REDACT,Rough Sleeper Project/NSNO,,46846,,************6498
Wyre Council,http://opendatacommunities.org/doc/district-council/wyre,27/09/2020,Resources,Housing General Fund,134A,Argos Cleveleys,18/03/2020,147947,12.49,0.00,REDACT,Rough Sleeper Project/NSNO,,46846,,************6498
Wyre Council,http://opendatacommunities.org/doc/district-council/wyre,27/09/2020,Resources,Housing General Fund,134A,Argos Cleveleys,18/03/2020,147949,12.49,0.00,REDACT,Rough Sleeper Project/NSNO,,46846,,************6498
Wyre Council,http://opendatacommunities.org/doc/district-council/wyre,27/09/2020,Resources,Housing General Fund,134A,Argos Cleveleys,18/03/2020,147951,12.49,0.00,REDACT,Rough Sleeper Project/NSNO,,46846,,************6498
Wyre Council,http://opendatacommunities.org/doc/district-council/wyre,27/09/2020,Resources,Housing General Fund,134A,Argos Cleveleys,18/03/2020,147953,81.71,0.00,REDACT,Rough Sleeper Project/NSNO,,46846,,************6498
Wyre Council,http://opendatacommunities.org/doc/district-council/wyre,27/09/2020,Resources,Housing General Fund,134A,Home Bargains Fleetwood,18/03/2020,147955,6.22,0.00,REDACT,Rough Sleeper Project/NSNO,,46846,,************6498
Wyre Council,http://opendatacommunities.org/doc/district-council/wyre,27/09/2020,Resources,Housing General Fund,134A,B&amp;amp;M Cleveleys,18/03/2020,147957,59.91,0.00,REDACT,Rough Sleeper Project/NSNO,,46846,,************6498
Wyre Council,http://opendatacommunities.org/doc/district-council/wyre,27/09/2020,Resources,Housing General Fund,134A,Asda Fleetwood,18/03/2020,147959,35.00,0.00,REDACT,Rough Sleeper Project/NSNO,,46846,,************6498
Wyre Council,http://opendatacommunities.org/doc/district-council/wyre,27/09/2020,People and Places,Environmental Services,132B,AITCH TOOLS & FASTENERS LTD,20/03/2020,148065,144.00,0.00,INVOICE 944288POLYESTER RESIN CARTRIDGECUP SQ HEXWASHERHEX ULL NUTTANK ADAPTORDOME NUTNYLON S,Materials and Consumables,,42002,,************8505
Wyre Council,http://opendatacommunities.org/doc/district-council/wyre,27/09/2020,People and Places,Environmental Services,132B,AITCH TOOLS & FASTENERS LTD,20/03/2020,148063,403.00,0.00,INVOICE 044884HEX FULL NUTPLATE WASHERS,Materials and Consumables,,42002,,************8505
Wyre Council,http://opendatacommunities.org/doc/district-council/wyre,27/09/2020,People and Places,Environmental Services,132B,AITCH TOOLS & FASTENERS LTD,20/03/2020,148055,416.00,0.00,INVOICE 044884ALL THREAD,Materials and Consumables,,42002,,************8505
Wyre Council,http://opendatacommunities.org/doc/district-council/wyre,27/09/2020,People and Places,Environmental Services,132B,AITCH TOOLS & FASTENERS LTD,20/03/2020,148061,416.00,0.00,INVOICE 044883ALLTHREAD,Materials and Consumables,,42002,,************8505
Wyre Council,http://opendatacommunities.org/doc/district-council/wyre,27/09/2020,People and Places,Environmental Services,132B,AITCH TOOLS & FASTENERS LTD,20/03/2020,148059,171.00,0.00,INVOICE 044080MASONRY DRILLFLAT METAL CUTTING DISCDISC MAGNETRATCHETRESIN CARTRIDGECOMBINATION,Materials and Consumables,,42002,,************8505
Wyre Council,http://opendatacommunities.org/doc/district-council/wyre,27/09/2020,People and Places,Environmental Services,132B,AITCH TOOLS & FASTENERS LTD,20/03/2020,148057,394.00,0.00,INVOICE 044882PLATE WASHERSALLTHREAD,Materials and Consumables,,42002,,************8505
Wyre Council,http://opendatacommunities.org/doc/district-council/wyre,27/09/2020,People and Places,Highways,133B,AITCH TOOLS & FASTENERS LTD,20/03/2020,148065,108.99,0.00,INVOICE 944288POLYESTER RESIN CARTRIDGECUP SQ HEXWASHERHEX ULL NUTTANK ADAPTORDOME NUTNYLON S,Naming of Streets,,28023,,************8505
Wyre Council,http://opendatacommunities.org/doc/district-council/wyre,27/09/2020,People and Places,Support Services,135B,AITCH TOOLS & FASTENERS LTD,20/03/2020,148059,190.36,0.00,INVOICE 044080MASONRY DRILLFLAT METAL CUTTING DISCDISC MAGNETRATCHETRESIN CARTRIDGECOMBINATION,Purchase of Tools or Equipment,,40100,,************8505
Wyre Council,http://opendatacommunities.org/doc/district-council/wyre,27/09/2020,People and Places,Support Services,135B,AITCH TOOLS & FASTENERS LTD,20/03/2020,148065,43.92,0.00,INVOICE 944288POLYESTER RESIN CARTRIDGECUP SQ HEXWASHERHEX ULL NUTTANK ADAPTORDOME NUTNYLON S,Maintenance of Tools or Equipment,,40102,,************8505
Wyre Council,http://opendatacommunities.org/doc/district-council/wyre,27/09/2020,People and Places,Environmental Services,132B,THE LOCKSHOP,20/03/2020,148067,48.91,0.00,LOCK3 X KEYS,Materials and Consumables,,42002,,************8505
Wyre Council,http://opendatacommunities.org/doc/district-council/wyre,27/09/2020,People and Places,Public Transport,133G,URBAN HYGIENE,27/03/2020,148250,159.96,0.00,INV-12042GRAFFITI REMOVERDELIVERY CHARGES,Repairs to Non-WBC Buildings,,21004,,************0987
Wyre Council,http://opendatacommunities.org/doc/district-council/wyre,27/09/2020,People and Places,Cultural and Related Services,132A,BUILDERS SUPPLIES (WEST COAST) LTD,27/03/2020,148256,23.12,0.00,INVOICE NO 0001/00160437R12822TANALISED SAWN CARCASSINGCT1 BLACK,Engineering and Maintenance Team,,78013,,************9017
Wyre Council,http://opendatacommunities.org/doc/district-council/wyre,27/09/2020,People and Places,Cultural and Related Services,132A,AMAZON.CO.UK,27/03/2020,148254,4.82,0.00,ORDER 204-3522697-7560344TOSHIBA MEMORY STICK,Special Events,,46522,,************0987
Wyre Council,http://opendatacommunities.org/doc/district-council/wyre,27/09/2020,People and Places,"Cultural, Environ and Planning",137B,WAITROSE,30/03/2020,148252,49.92,0.00,ORDER NO WAI-2512238RATTAN OBELISKDELIVERY,Contract (New CCR),,04020,,************0987
Wyre Council,http://opendatacommunities.org/doc/district-council/wyre,27/09/2020,People and Places,Cultural and Related Services,132A,Fast Fix Workshop Ltd,30/03/2020,148341,9.97,0.00,3x Light Bulbs - 11.97(above for WECP),Purchase of Tools or Equipment,,40100,,************5113
Wyre Council,http://opendatacommunities.org/doc/district-council/wyre,27/09/2020,People and Places,Environmental Services,132B,BUILDERS SUPPLIES (WEST COAST) LTD,30/03/2020,148384,44.82,0.00,to suplly items as per invoice 0001/00161316.,Materials and Consumables,,42002,,************0987
Wyre Council,http://opendatacommunities.org/doc/district-council/wyre,27/09/2020,People and Places,Highways,133B,BUILDERS SUPPLIES (WEST COAST) LTD,30/03/2020,148384,87.70,0.00,to suplly items as per invoice 0001/00161316.,Maint. of Unadopted Assets - Engineers,,28014,,************0987
Wyre Council,http://opendatacommunities.org/doc/district-council/wyre,27/09/2020,People and Places,Support Services,135B,QUALITY AUTOPARTS LTD,30/03/2020,148353,137.00,0.00,INVOICE 00001DS TAPEVICE GRIPSUMP WASHERSPINCH BOLTASSORT TRIM,Materials and Consumables,,42002,,************4775
Wyre Council,http://opendatacommunities.org/doc/district-council/wyre,27/09/2020,People and Places,Cultural and Related Services,132A,BUILDERS SUPPLIES (WEST COAST) LTD,30/03/2020,148308,86.40,0.00,INVOICE NO 0001/00162158R12921SITE PEG TANALISED,Engineering and Maintenance Team,,78013,,************8505
Wyre Council,http://opendatacommunities.org/doc/district-council/wyre,27/09/2020,People and Places,Environmental Services,132B,THE LOCKSHOP,30/03/2020,148306,132.85,0.00,LOCK2 X KEYS,Materials and Consumables,,42002,,************8505
Wyre Council,http://opendatacommunities.org/doc/district-council/wyre,27/09/2020,People and Places,Environmental Services,132B,SCREW FIX DIRECT LTD,30/03/2020,148312,10.00,0.00,INVOICE NO A6225044700HOSE CLIPS,Materials and Consumables,,42002,,************9017
Wyre Council,http://opendatacommunities.org/doc/district-council/wyre,27/09/2020,People and Places,Environmental Services,132B,SCREWFIX DIRECT LTD,30/03/2020,148310,16.65,0.00,INVOICE A6242728163MULTI SURFACE SEALANT,Materials and Consumables,,42002,,************8505
Wyre Council,http://opendatacommunities.org/doc/district-council/wyre,27/09/2020,People and Places,Support Services,135B,SCEW FIX DIRECT LTD,30/03/2020,148304,12.49,0.00,INVOICE A6232552485DRILL BIT,Maintenance of Tools or Equipment,,40102,,************8505
Wyre Council,http://opendatacommunities.org/doc/district-council/wyre,27/09/2020,People and Places,Cultural and Related Services,132A,NET WORLD SPORTS,30/03/2020,148388,86.53,0.00,INVOICE NO PSI10461820HEAVY DUTY BIRD NETTING,Special Events,,46522,,************0987
Wyre Council,http://opendatacommunities.org/doc/district-council/wyre,27/09/2020,People and Places,Planning and Development Servs,132C,BUILDERS SUPPLIES (WEST COAST) LTD,30/03/2020,148357,23.22,0.00,items for garage toilet,Materials and Consumables,,42002,,************4775
Wyre Council,http://opendatacommunities.org/doc/district-council/wyre,27/09/2020,People and Places,Environmental Services,132B,AUTO BITZ MOTOR FACTORS LTD,30/03/2020,148355,7.50,0.00,1 REAR NUMBER PLATE - PK12 MVU,Daywork Materials (Excl.Tyres),,30507,,************4775
Wyre Council,http://opendatacommunities.org/doc/district-council/wyre,27/09/2020,People and Places,Cultural and Related Services,132A,AMAZON.CO.UK,30/03/2020,148382,58.32,0.00,INVOICE -GB-100004361-2020-77622VACUUM CLEANER,Special Events,,46522,,************0987
Wyre Council,http://opendatacommunities.org/doc/district-council/wyre,27/09/2020,People and Places,Cultural and Related Services,132A,AMAZON.CO.UK,30/03/2020,148386,38.87,0.00,ORDER 204-5638092-0169965KETTLE,Special Events,,46522,,************0987
Wyre Council,http://opendatacommunities.org/doc/district-council/wyre,27/09/2020,People and Places,Environmental Services,132B,BUILDERS SUPPLIES (WEST COAST) LTD,30/03/2020,148314,50.78,0.00,builder supply invoice number 001/00163032,Materials and Consumables,,42002,,************9017
Wyre Council,http://opendatacommunities.org/doc/district-council/wyre,27/09/2020,People and Places,Cultural and Related Services,132A,facebook,30/03/2020,148395,12.51,0.00,facebook  boosted post,Advertising - General,,46100,,************1416
Wyre Council,http://opendatacommunities.org/doc/district-council/wyre,27/09/2020,People and Places,Environmental Services,132B,ST GOBAIN BUILDING DISTRIBUTION LTD,30/03/2020,148378,18.25,0.00,R1215,Materials and Consumables,,42002,,************8505
Wyre Council,http://opendatacommunities.org/doc/district-council/wyre,27/09/2020,People and Places,Environmental Services,132B,Mailchimp,30/03/2020,148350,67.30,0.00,Mailchimp invoice - green waste emails,Promotions - General,,46104,,************1416
Wyre Council,http://opendatacommunities.org/doc/district-council/wyre,27/09/2020,People and Places,Parking Services,133F,speed bumps direct ltd,30/03/2020,148374,383.40,0.00,ORDER 2958 SPEED BUMPS,"Paths, Roads and Car Park Mtnce Annual",,28050,,************8505
Wyre Council,http://opendatacommunities.org/doc/district-council/wyre,27/09/2020,Resources,Housing General Fund,134A,AMZNMKTPLACE,31/03/2020,148450,83.32,0.00,Order # 206-1902939-0345954,Purchase of Tools or Equipment,,40100,,************1859
Wyre Council,http://opendatacommunities.org/doc/district-council/wyre,27/09/2020,Resources,Support Services,135B,AMZNMKTPLACE,31/03/2020,148448,17.28,0.00,Order # 202-4166714-9082713,Comp Hardware Purchases,,43500,,************1859
Wyre Council,http://opendatacommunities.org/doc/district-council/wyre,27/09/2020,Resources,Support Services,135B,PC SPECIALIST LTD,31/03/2020,148446,545.00,0.00,Thick client order for planning installed and deployed byREDACT,Purchase of Tools or Equipment,,40100,,************1859
